bitfinex/quotes_SOLUSD_20241021
["timestamp","ask_amount","ask_price","bid_price","bid_amount"]
[1729498617570,5.9277,168.7,168.64,20.7534]
[1729498618765,5.9281,168.69,168.64,20.7534]
[1729498618970,5.9282,168.69,168.64,14.8237]
[1729498622501,5.9282,168.69,168.64,20.7534]
[1729498622673,5.9277,168.7,168.65,5.9294]
[1729498622869,5.928,168.69,168.64,20.7534]
[1729498623802,20.0,168.73,168.64,14.8237]
[1729498624382,5.9283,168.69,168.64,14.8237]
[1729498626294,5.9292,168.66,168.62,21.4255]
[1729498626507,5.9293,168.66,168.62,21.4255]
[1729498627084,5.9293,168.66,168.61,20.7576]
[1729498627307,5.9299,168.64,168.6,0.604176]
[1729498627505,5.9294,168.65,168.6,6.535276]
[1729498627679,5.9294,168.65,168.6,0.604176]
[1729498628097,20.0,168.67,168.6,0.604176]
[1729498628288,20.0,168.65,168.6,0.604176]
[1729498629300,5.9304,168.63,168.6,0.604176]
[1729498629505,5.9306,168.62,168.6,0.604176]
[1729498629985,5.9297,168.64,168.6,0.604176]
[1729498630191,5.9308,168.61,168.6,0.604176]
[1729498632505,20.0,168.63,168.54,16.5886]
[1729498632722,5.9323,168.57,168.54,16.5886]
[1729498633088,5.9323,168.57,168.51,12.2341]
[1729498633283,5.9329,168.55,168.51,6.2998]
[1729498633884,5.9322,168.57,168.51,12.2338]
[1729498634507,20.0,168.6,168.51,12.2338]
[1729498634717,5.9327,168.56,168.51,12.2338]
[1729498635103,5.9327,168.56,168.51,6.2998]
[1729498635516,5.9323,168.57,168.52,5.934]
[1729498639706,5.9328,168.56,168.51,12.2341]
[1729498642208,5.9322,168.57,168.52,5.9339]
[1729498643192,6.96080233,168.61,168.56,5.9325]
[1729498643416,1.03000233,168.61,168.59,5.9314]
[1729498643695,5.9294,168.65,168.6,5.9309]
[1729498645900,5.9286,168.68,168.61,14.827]
[1729498646217,22.4686759,168.7,168.58,6.218]
[1729498646218,16.3063,168.7,168.58,6.218]
[1729498646435,5.9266,168.73,168.65,14.8228]
[1729498646733,5.9266,168.73,168.67,5.9287]
[1729498647206,5.9261,168.75,168.69,5.928]
[1729498647404,22.6179,168.78,168.67,14.8213]
[1729498647812,5.9267,168.73,168.67,20.75]
[1729498648019,22.6179,168.78,168.67,14.8213]
[1729498648225,22.6179,168.78,168.68,5.9281]
[1729498648431,22.6179,168.78,168.7,5.9274]
[1729498648720,22.6179,168.78,168.7,20.7466]
[1729498649018,5.926,168.75,168.7,14.8192]
[1729498649324,5.9263,168.74,168.67,5.9284]
[1729498649626,5.9263,168.74,168.68,5.9283]
[1729498649930,5.9257,168.76,168.69,5.9276]
[1729498650222,5.9259,168.75,168.69,5.9276]
[1729498650521,5.9251,168.78,168.69,14.8198]
[1729498650818,5.9251,168.78,168.67,29.6436]
[1729498650819,5.925,168.78,168.71,20.7451]
[1729498651021,5.925,168.78,168.72,5.9267]
[1729498651607,5.9238,168.81,168.75,5.9258]
[1729498651800,5.9238,168.81,168.75,5.9257]
[1729498652019,22.89520583,168.86,168.76,5.9253]
[1729498652306,5.9234,168.83,168.77,5.9252]
[1729498652618,5.9234,168.83,168.78,5.9248]
[1729498653040,5.9227,168.85,168.78,5.9246]
[1729498653234,15.6282,168.86,168.78,5.9245]
[1729498653412,15.6282,168.86,168.78,20.7366]
[1729498653617,5.9227,168.84,168.78,20.7366]
[1729498654539,15.6282,168.86,168.74,6.4249]
[1729498654540,5.9235,168.82,168.76,5.9255]
[1729498655331,5.9238,168.81,168.76,5.9255]
[1729498655936,20.0,168.85,168.74,6.4249]
[1729498656246,5.9232,168.83,168.77,5.9252]
[1729498657741,5.9224,168.85,168.74,6.4249]
[1729498657925,20.0,168.85,168.75,20.7404]
[1729498658124,20.0,168.85,168.77,5.9252]
[1729498658324,5.9234,168.82,168.77,5.9252]
[1729498658725,20.0,168.85,168.77,5.9252]
[1729498658931,5.9227,168.84,168.77,5.9252]
[1729498659445,5.9232,168.83,168.77,5.9252]
[1729498660928,20.0,168.85,168.77,5.9252]
[1729498661132,5.9234,168.82,168.77,5.9252]
[1729498661646,5.9231,168.84,168.74,36.056]
[1729498661823,5.9227,168.84,168.78,5.9246]
[1729498662226,5.9227,168.84,168.78,20.7361]
[1729498662929,5.9234,168.83,168.78,14.8115]
[1729498663450,15.6282,168.86,168.76,5.9255]
[1729498663451,14.806,168.85,168.76,5.9255]
[1729498663744,20.0,168.84,168.75,14.8147]
[1729498663929,5.9241,168.81,168.75,20.7405]
[1729498664130,5.9231,168.83,168.75,20.7405]
[1729498664359,5.9241,168.81,168.75,20.7405]
[1729498666045,5.924,168.81,168.76,20.7391]
[1729498666426,5.924,168.81,168.76,14.8139]
[1729498667151,5.9242,168.8,168.75,5.9259]
[1729498668631,5.9245,168.79,168.74,6.4249]
[1729498669433,5.9248,168.79,168.74,6.4249]
[1729498670150,5.9248,168.79,168.73,20.7427]
[1729498671247,5.9248,168.79,168.74,5.9262]
[1729498676536,6.17584659,168.83,168.72,15.1104]
[1729498676741,5.9242,168.8,168.75,20.7407]
[1729498680834,5.9245,168.79,168.75,20.7407]
[1729498681552,5.9245,168.79,168.72,15.1104]
[1729498681553,20.0,168.83,168.72,29.9276]
[1729498681759,26.4761,168.83,168.72,15.1104]
[1729498681949,5.9259,168.75,168.7,12.4887]
[1729498688157,5.9267,168.73,168.69,14.8199]
[1729498688941,5.9275,168.71,168.66,6.2375]
[1729498690351,20.0,168.76,168.64,15.1621]
[1729498690672,5.9284,168.68,168.63,5.9301]
[1729498690971,5.9291,168.66,168.62,6.4752]
[1729498691138,5.9285,168.68,168.62,12.4056]
[1729498691341,20.0,168.71,168.62,6.4752]
[1729498691550,5.9293,168.66,168.61,14.8265]
[1729498696667,20.0,168.68,168.62,14.8262]
[1729498696868,5.9291,168.66,168.62,14.8262]
[1729498697456,5.9291,168.66,168.61,5.9308]
[1729498699770,5.9295,168.65,168.6,16.6342]
[1729498699972,5.9292,168.66,168.61,5.9306]
[1729498700358,1.03019124,168.7,168.61,23.776884]
[1729498700553,14.8182,168.72,168.64,5.9295]
[1729498700753,5.928,168.69,168.64,5.9295]
[1729498701452,5.9288,168.67,168.63,14.8249]
[1729498702660,5.9276,168.71,168.61,23.776884]
[1729498702966,5.9277,168.7,168.65,5.9293]
[1729498704458,5.9287,168.67,168.63,14.8253]
[1729498704776,20.0,168.72,168.63,20.7551]
[1729498705083,5.929,168.66,168.61,5.9308]
[1729498705578,14.8192,168.7,168.6,16.6342]
[1729498705785,5.9293,168.66,168.6,22.5653]
[1729498706157,5.9293,168.66,168.61,5.9306]
[1729498708579,5.9294,168.65,168.6,31.4619]
[1729498709578,5.9292,168.66,168.61,14.8265]
[1729498709772,5.929,168.67,168.61,14.8265]
[1729498710784,5.929,168.67,168.62,5.9304]
[1729498711274,20.0,168.69,168.6,16.6342]
[1729498711471,20.0,168.69,168.62,14.8262]
[1729498711978,5.929,168.67,168.62,20.7566]
[1729498714482,35.7336,168.71,168.59,15.5705]
[1729498714690,5.9296,168.65,168.6,5.931]
[1729498716984,29.95836505,168.7,168.6,5.931]
[1729498717183,5.9298,168.64,168.59,20.76]
[1729498717565,5.9294,168.66,168.61,5.9307]
[1729498721186,5.9297,168.65,168.6,20.7586]
[1729498722998,5.9297,168.65,168.6,14.8275]
[1729498725573,5.9298,168.64,168.58,5.9318]
[1729498726591,5.9304,168.63,168.57,20.7627]
[1729498730594,1.03014755,168.69,168.57,20.7627]
[1729498730781,5.9305,168.62,168.57,20.7627]
[1729498733299,1.03014755,168.69,168.56,23.776884]
[1729498733300,21.03014755,168.69,168.56,23.776884]
[1729498733489,14.8227,168.66,168.54,21.9689]
[1729498733696,5.9316,168.59,168.55,1.48397754]
[1729498733880,5.932,168.58,168.54,21.9689]
[1729498734889,16.4416,168.58,168.47,0.1]
[1729498735109,5.9329,168.56,168.51,5.9343]
[1729498736310,14.8287,168.6,168.5,6.4497]
[1729498736606,16.4416,168.62,168.54,5.9332]
[1729498736807,16.4416,168.62,168.51,16.1512]
[1729498736808,16.4416,168.62,168.53,20.7676]
[1729498737100,5.9319,168.58,168.53,20.7676]
[1729498739418,5.9319,168.58,168.54,1.48421574]
[1729498740120,14.8238,168.65,168.55,23.776884]
[1729498740330,5.9308,168.62,168.57,23.776884]
[1729498740496,14.8238,168.65,168.57,23.776884]
[1729498740803,5.9305,168.62,168.57,29.708984]
[1729498740998,16.0741,168.66,168.57,23.776884]
[1729498741208,16.0741,168.66,168.58,14.8295]
[1729498741403,17.10469733,168.66,168.58,14.8295]
[1729498741605,5.9305,168.62,168.58,14.8295]
[1729498741997,17.10469733,168.66,168.57,23.776884]
[1729498742206,5.9298,168.64,168.58,1.48395155]
[1729498742394,17.10469733,168.66,168.59,23.776884]
[1729498742395,1.03059733,168.66,168.59,23.776884]
[1729498742594,12.1117243,168.68,168.63,23.776884]
[1729498742821,5.9276,168.7,168.65,5.9292]
[1729498743001,5.9281,168.69,168.64,20.7539]
[1729498744022,14.8157,168.74,168.64,14.8242]
[1729498744206,5.9262,168.74,168.68,5.928]
[1729498744694,14.8126,168.78,168.68,5.928]
[1729498745117,5.927,168.72,168.68,23.776884]
[1729498745303,14.8126,168.78,168.68,23.776884]
[1729498745511,16.0741,168.79,168.68,23.776884]
[1729498745816,5.9259,168.75,168.7,23.776884]
[1729498746022,16.0741,168.79,168.68,14.8208]
[1729498746224,5.9264,168.74,168.68,14.8208]
[1729498746429,5.87531,168.74,168.68,14.8208]
[1729498747817,30.8855,168.79,168.68,14.8208]
[1729498747998,5.9266,168.73,168.68,14.8208]
[1729498748700,20.0,168.78,168.66,23.776884]
[1729498748896,5.9276,168.7,168.67,1.48327868]
[1729498749637,5.9276,168.7,168.66,23.776884]
[1729498749796,14.8139,168.76,168.66,23.776884]
[1729498750003,5.9281,168.69,168.65,22.2966]
[1729498750202,5.9281,168.69,168.66,1.48339108]
[1729498750630,5.9285,168.68,168.62,5.9304]
[1729498750830,5.9285,168.68,168.63,1.4834866]
[1729498751032,5.9285,168.68,168.64,1.4834866]
[1729498751221,5.9285,168.68,168.62,5.9304]
[1729498751542,5.9285,168.68,168.63,1.48353061]
[1729498751827,5.9285,168.68,168.64,1.48353061]
[1729498752033,5.9285,168.68,168.63,23.776884]
[1729498752242,5.9285,168.68,168.64,1.48352481]
[1729498752444,14.8139,168.77,168.65,23.776884]
[1729498752735,5.9274,168.71,168.66,16.30612481]
[1729498752928,5.9279,168.7,168.65,23.776884]
[1729498753124,14.8152,168.75,168.66,1.48339641]
[1729498753428,5.9283,168.68,168.62,29.707284]
[1729498753632,5.9283,168.68,168.64,23.776884]
[1729498754317,5.9283,168.68,168.63,23.776884]
[1729498754635,5.9283,168.68,168.64,1.48351911]
[1729498756739,6.1843013,168.75,168.64,1.48351911]
[1729498757028,5.9293,168.66,168.62,23.776884]
[1729498757235,5.9293,168.66,168.63,1.48362876]
[1729498758024,5.9293,168.66,168.62,23.776884]
[1729498758227,5.9293,168.66,168.63,1.48364888]
[1729498758927,5.9293,168.66,168.62,23.776884]
[1729498759132,5.9293,168.66,168.63,1.48364896]
[1729498759715,15.7596,168.72,168.63,1.48364896]
[1729498759920,5.9297,168.64,168.63,1.48364896]
[1729498760126,5.9297,168.64,168.61,21.9796]
[1729498760314,29.6384,168.7,168.61,21.9796]
[1729498760315,44.4576,168.7,168.62,1.48372702]
[1729498760640,5.9294,168.65,168.62,1.48372702]
[1729498760834,5.928,168.69,168.62,1.48372702]
[1729498761015,5.9297,168.65,168.62,1.48372702]
[1729498761537,5.9299,168.64,168.62,1.48372702]
[1729498761726,5.9299,168.64,168.61,21.9796]
[1729498761923,5.9299,168.64,168.62,1.48373232]
[1729498762229,29.6384,168.7,168.6,23.776884]
[1729498762441,5.9301,168.63,168.61,1.48373496]
[1729498762621,5.9301,168.63,168.58,29.708684]
[1729498762826,5.9301,168.63,168.59,1.48379534]
[1729498763027,5.9301,168.63,168.6,1.48379534]
[1729498763226,5.9301,168.63,168.61,1.48379534]
[1729498763531,5.9301,168.63,168.58,29.708684]
[1729498763836,5.9301,168.63,168.59,1.4838022]
[1729498764037,5.9301,168.63,168.6,1.4838022]
[1729498764335,5.9301,168.63,168.61,1.4838022]
[1729498764538,5.9301,168.63,168.58,29.708684]
[1729498764839,5.9301,168.63,168.59,1.48380447]
[1729498765031,5.9301,168.63,168.6,1.48380447]
[1729498765228,5.9301,168.63,168.59,1.48380447]
[1729498765436,15.85148761,168.68,168.6,1.48380447]
[1729498765636,5.9299,168.64,168.61,1.48380447]
[1729498765829,5.9299,168.64,168.58,23.776884]
[1729498766038,5.9299,168.64,168.59,1.48380219]
[1729498766341,5.9299,168.64,168.6,1.48380219]
[1729498766641,5.9299,168.64,168.61,1.48380219]
[1729498767016,5.9299,168.64,168.59,1.48380219]
[1729498767417,5.9299,168.64,168.58,29.708684]
[1729498767734,5.9302,168.63,168.58,29.708684]
[1729498768617,5.9305,168.62,168.58,23.776884]
[1729498769622,5.9305,168.62,168.59,1.4837976]
[1729498769931,5.9305,168.62,168.6,1.48386255]
[1729498770719,5.9305,168.62,168.58,23.776884]
[1729498770922,5.9305,168.62,168.59,1.48386898]
[1729498771245,1.03058761,168.68,168.61,23.776884]
[1729498771452,5.928,168.69,168.64,20.7536]
[1729498771741,5.928,168.69,168.64,14.8239]
[1729498771953,5.9284,168.68,168.64,14.8239]
[1729498772124,5.9284,168.68,168.63,5.93]
[1729498772327,5.9284,168.68,168.64,1.48357701]
[1729498772831,5.9284,168.68,168.63,23.776884]
[1729498773023,5.9284,168.68,168.64,1.48356776]
[1729498774237,5.9284,168.68,168.62,23.776884]
[1729498774442,5.9284,168.68,168.63,1.4835827]
[1729498775140,5.9287,168.67,168.63,1.4835827]
[1729498775726,5.9287,168.67,168.62,29.707284]
[1729498775941,5.9287,168.67,168.63,1.48356143]
[1729498785759,15.7596,168.72,168.63,1.48356143]
[1729498786065,5.9295,168.65,168.63,1.48356143]
[1729498786231,5.9297,168.64,168.63,1.48356143]
[1729498786430,5.9303,168.63,168.57,43.1647]
[1729498786649,5.9303,168.63,168.58,1.48376356]
[1729498786960,5.9303,168.63,168.59,1.48376356]
[1729498787156,5.9303,168.63,168.6,1.48376356]
[1729498787341,5.9303,168.63,168.61,1.48376356]
[1729498787649,5.9303,168.63,168.58,5.9317]
[1729498787861,5.9303,168.63,168.59,1.48382176]
[1729498788040,5.9303,168.63,168.6,1.48382176]
[1729498788238,5.9303,168.63,168.61,1.48381542]
[1729498788439,5.9303,168.63,168.58,5.9317]
[1729498788642,5.9303,168.63,168.59,1.4838131]
[1729498788949,5.9303,168.63,168.6,1.4838126]
[1729498789552,5.9297,168.65,168.6,1.4838126]
[1729498790141,5.9297,168.65,168.59,29.708284]
[1729498790349,5.9297,168.65,168.61,1.48379491]
[1729498790661,5.9297,168.65,168.59,29.708284]
[1729498790840,5.9297,168.65,168.6,1.48380379]
[1729498791658,5.93,168.64,168.6,1.48380379]
[1729498793856,5.93,168.64,168.61,1.48381136]
[1729498794038,5.93,168.64,168.59,29.708284]
[1729498794241,5.93,168.64,168.6,1.48382293]
[1729498794966,5.93,168.64,168.61,1.48382293]
[1729498795262,5.9304,168.63,168.57,43.1644]
[1729498795459,5.9304,168.63,168.58,1.48378346]
[1729498795636,5.9304,168.63,168.59,1.48378346]
[1729498795841,5.9304,168.63,168.6,1.48378346]
[1729498796041,5.9304,168.63,168.57,43.1644]
[1729498796255,5.9304,168.63,168.58,1.48386806]
[1729498796441,5.9304,168.63,168.59,1.48386806]
[1729498796642,5.9304,168.63,168.6,1.48386806]
[1729498796856,5.9304,168.63,168.61,1.48386806]
[1729498797062,5.9304,168.63,168.58,23.776884]
[1729498797266,5.9304,168.63,168.59,1.48388805]
[1729498797465,5.9304,168.63,168.58,23.776884]
[1729498797645,5.9304,168.63,168.59,1.48388755]
[1729498797845,5.9304,168.63,168.6,1.48388755]
[1729498798041,5.9304,168.63,168.61,1.48388755]
[1729498798353,5.9304,168.63,168.58,23.776884]
[1729498798666,5.9304,168.63,168.59,1.48388821]
[1729498798865,5.9304,168.63,168.6,1.48388821]
[1729498799065,5.9304,168.63,168.61,1.48388821]
[1729498799247,5.9304,168.63,168.58,23.776884]
[1729498799448,5.9304,168.63,168.59,1.48388805]
[1729498799640,5.9304,168.63,168.6,1.48388805]
[1729498799845,5.9304,168.63,168.61,1.48388805]
[1729498800148,5.9304,168.63,168.58,23.776884]
[1729498800354,5.9304,168.63,168.59,1.48388798]
[1729498800555,5.9304,168.63,168.6,1.48388798]
[1729498800864,5.9304,168.63,168.61,1.48388798]
[1729498801059,5.9304,168.63,168.58,23.776884]
[1729498801267,5.9304,168.63,168.59,1.48388798]
[1729498801448,5.9304,168.63,168.6,1.48388798]
[1729498801650,5.9304,168.63,168.61,1.48388798]
[1729498801865,5.9304,168.63,168.58,23.776884]
[1729498802075,5.9304,168.63,168.59,1.48388798]
[1729498802258,5.9304,168.63,168.6,1.48388798]
[1729498802453,5.9304,168.63,168.61,1.48388798]
[1729498802663,5.9304,168.63,168.58,23.776884]
[1729498802855,5.9304,168.63,168.59,1.48388649]
[1729498803152,5.9304,168.63,168.6,1.48388649]
[1729498803361,5.9304,168.63,168.61,1.48388649]
[1729498803563,5.9304,168.63,168.58,23.776884]
[1729498803759,5.9304,168.63,168.59,1.48388787]
[1729498803962,5.9304,168.63,168.6,1.48388737]
[1729498804155,5.9304,168.63,168.61,1.48388737]
[1729498804352,5.9304,168.63,168.58,23.776884]
[1729498804568,5.9304,168.63,168.59,1.48388125]
[1729498804866,5.9304,168.63,168.6,1.48388125]
[1729498805076,5.9304,168.63,168.61,1.48388125]
[1729498805377,5.9304,168.63,168.58,23.776884]
[1729498805554,5.9304,168.63,168.59,1.48389638]
[1729498805874,5.9304,168.63,168.6,1.48389638]
[1729498806177,5.9289,168.67,168.62,23.776884]
[1729498806371,15.7596,168.72,168.63,1.48389638]
[1729498806583,15.7596,168.72,168.64,1.48389638]
[1729498806900,5.9273,168.71,168.65,1.48389638]
[1729498807085,5.9286,168.68,168.65,1.48389638]
[1729498807375,5.9286,168.68,168.66,1.48389638]
[1729498807671,5.9286,168.68,168.62,44.533084]
[1729498807871,5.9286,168.68,168.63,1.48354018]
[1729498808078,5.9286,168.68,168.64,1.48354018]
[1729498808250,5.9286,168.68,168.65,1.48354018]
[1729498808450,5.9286,168.68,168.66,1.48354018]
[1729498808762,5.9286,168.68,168.62,44.533084]
[1729498809072,5.9286,168.68,168.63,1.48354218]
[1729498809273,5.9286,168.68,168.64,1.48354218]
[1729498809473,7.21521531,168.76,168.66,23.776884]
[1729498809768,31.4746,168.77,168.68,29.705184]
[1729498809975,5.9256,168.76,168.7,5.9276]
[1729498810285,5.9256,168.76,168.71,1.48323517]
[1729498810458,5.9256,168.76,168.7,23.776884]
[1729498810773,5.9261,168.75,168.71,1.48320937]
[1729498810946,5.9261,168.75,168.7,23.776884]
[1729498811150,5.9268,168.73,168.71,1.48321539]
[1729498811452,5.927,168.72,168.68,23.776884]
[1729498811652,5.927,168.72,168.69,1.48322146]
[1729498811876,5.927,168.72,168.7,1.48322146]
[1729498812072,5.927,168.72,168.71,1.48322146]
[1729498812371,5.9266,168.73,168.68,23.776884]
[1729498812572,5.9266,168.73,168.69,1.48324615]
[1729498812877,5.9266,168.73,168.7,1.48324615]
[1729498813075,5.9266,168.73,168.68,23.776884]
[1729498813272,20.0,168.8,168.7,5.9275]
[1729498813457,20.0,168.8,168.69,16.30324349]
[1729498813458,5.9266,168.74,168.71,1.48324349]
[1729498813659,5.9266,168.74,168.69,14.82]
[1729498813965,5.9266,168.74,168.7,1.48321911]
[1729498814164,5.9266,168.73,168.69,14.82]
[1729498814369,5.9262,168.75,168.7,1.48321961]
[1729498814572,5.9264,168.74,168.71,1.48321961]
[1729498814754,5.9264,168.74,168.71,1.48321563]
[1729498814949,5.9264,168.74,168.69,14.82]
[1729498815174,5.9264,168.74,168.7,1.48321663]
[1729498815384,5.9264,168.74,168.71,1.48321663]
[1729498815577,5.9264,168.74,168.69,14.82]
[1729498815784,5.9273,168.71,168.7,1.48316171]
[1729498816071,20.1,168.8,168.66,23.776884]
[1729498816382,5.9278,168.7,168.67,1.48328814]
[1729498816558,5.9278,168.7,168.68,1.48328814]
[1729498816755,5.9278,168.7,168.69,1.48328814]
[1729498818477,5.9278,168.7,168.66,23.776884]
[1729498818682,5.9278,168.7,168.67,1.48332718]
[1729498818865,5.928,168.69,168.68,1.48332718]
[1729498819055,5.929,168.66,168.62,21.2644]
[1729498819255,5.929,168.66,168.63,1.48346684]
[1729498819589,15.6163,168.76,168.64,1.48346684]
[1729498819766,20.0,168.73,168.65,1.48346684]
[1729498820080,5.9294,168.65,168.62,6.4391]
[1729498820287,5.9294,168.65,168.63,1.48359423]
[1729498820465,5.9294,168.65,168.64,1.48359423]
[1729498823688,5.928,168.7,168.64,7.41309423]
[1729498823861,5.9281,168.69,168.65,1.48359423]
[1729498824068,5.9281,168.69,168.66,1.48359423]
[1729498824274,5.9281,168.69,168.64,5.9295]
[1729498824470,5.9281,168.69,168.65,1.48345931]
[1729498824671,5.9281,168.69,168.66,1.48345931]
[1729498824994,5.9291,168.66,168.62,23.776884]
[1729498825162,5.9291,168.66,168.63,1.48358106]
[1729498825366,5.9291,168.66,168.64,1.48359788]
[1729498825581,5.9291,168.66,168.65,1.48359788]
[1729498826574,5.9299,168.64,168.59,15.2097]
[1729498826771,5.9299,168.64,168.6,1.4837629]
[1729498826971,5.9299,168.64,168.61,1.4837629]
[1729498827190,5.9299,168.64,168.62,1.4837629]
[1729498827365,5.9299,168.64,168.63,1.4837629]
[1729498830082,15.7304,168.69,168.58,6.4516]
[1729498830288,5.9309,168.61,168.59,1.4838572]
[1729498830493,5.9309,168.61,168.6,1.4838572]
[1729498832085,14.8262,168.62,168.53,6.1761]
[1729498832297,5.9333,168.54,168.5,30.6581]
[1729498832492,5.9333,168.54,168.5,15.8222]
[1729498832862,5.9329,168.56,168.5,21.7568]
[1729498833272,20.0,168.62,168.5,15.8222]
[1729498833480,5.9332,168.55,168.5,15.8222]
[1729498833893,5.9334,168.54,168.5,15.8222]
[1729498834070,14.8288,168.59,168.5,15.8222]
[1729498834791,5.9329,168.56,168.5,15.8222]
[1729498834997,5.9329,168.56,168.51,5.9343]
[1729498835179,34.8263,168.62,168.51,23.776884]
[1729498835385,5.9321,168.58,168.52,5.9339]
[1729498835698,34.8263,168.62,168.52,5.9339]
[1729498835901,5.9322,168.57,168.52,5.9339]
[1729498836201,5.931,168.61,168.55,5.9327]
[1729498838496,5.9311,168.6,168.55,5.9327]
[1729498844220,5.9311,168.6,168.56,1.48409012]
[1729498846606,5.9311,168.6,168.57,1.48413751]
[1729498846831,5.9311,168.6,168.55,5.9327]
[1729498847007,5.9311,168.6,168.56,1.48413801]
[1729498850410,15.7304,168.63,168.56,1.48413801]
[1729498850626,5.9308,168.62,168.57,7.41623801]
[1729498850812,5.9308,168.62,168.57,5.9321]
[1729498851013,5.9308,168.62,168.58,1.48396483]
[1729498851214,5.931,168.61,168.58,1.48396483]
[1729498851419,5.931,168.61,168.56,20.7638]
[1729498851614,5.931,168.61,168.57,1.48401298]
[1729498852625,15.4937,168.67,168.57,16.31451298]
[1729498852815,5.9298,168.64,168.58,7.41561298]
[1729498853025,5.9298,168.64,168.58,5.9316]
[1729498854521,15.4937,168.67,168.6,5.9311]
[1729498854729,5.9294,168.65,168.6,5.9311]
[1729498855216,5.9294,168.65,168.57,16.0596]
[1729498855217,15.4937,168.67,168.57,16.0596]
[1729498855421,27.22801026,168.69,168.57,16.0596]
[1729498855422,5.9293,168.66,168.6,20.7587]
[1729498855821,5.9298,168.64,168.6,20.7587]
[1729498856636,5.9298,168.64,168.6,14.8278]
[1729498857121,5.9298,168.64,168.59,5.9314]
[1729498857429,5.9298,168.64,168.6,1.48385621]
[1729498857640,5.9298,168.64,168.58,29.708684]
[1729498857819,5.9298,168.64,168.59,1.48385671]
[1729498858326,20.0,168.68,168.59,1.48385671]
[1729498858516,5.9299,168.64,168.59,7.41535671]
[1729498858717,5.9299,168.64,168.6,1.48385671]
[1729498859520,5.9301,168.63,168.6,1.48385671]
[1729498859821,5.9301,168.63,168.58,29.708684]
[1729498860024,5.9301,168.63,168.59,1.48385474]
[1729498860719,5.9301,168.63,168.58,29.708684]
[1729498860918,5.9298,168.64,168.6,1.48384831]
[1729498861119,5.9298,168.64,168.6,23.776884]
[1729498866431,6.18831026,168.69,168.6,23.776884]
[1729498866622,5.9308,168.61,168.58,23.776884]
[1729498866829,5.9308,168.61,168.59,1.48385917]
[1729498867043,5.9311,168.6,168.59,1.48385917]
[1729498867343,22.0948,168.68,168.55,6.1548]
[1729498867642,5.9323,168.57,168.56,1.48408933]
[1729498867842,5.9329,168.55,168.51,6.2351]
[1729498868021,5.9329,168.55,168.52,1.48422602]
[1729498868228,5.9329,168.55,168.53,1.48422602]
[1729498868451,5.9329,168.55,168.54,1.48422602]
[1729498868824,5.9329,168.55,168.52,1.48422602]
[1729498869029,5.9329,168.55,168.53,1.48422602]
[1729498869233,5.9329,168.55,168.54,1.48422602]
[1729498869923,14.8285,168.6,168.54,1.48422602]
[1729498870251,5.9327,168.56,168.54,1.48422602]
[1729498870839,5.9327,168.56,168.52,23.776884]
[1729498871037,5.9327,168.56,168.54,23.776884]
[1729498871339,5.9327,168.56,168.52,23.776884]
[1729498871544,5.9327,168.56,168.54,23.776884]
[1729498871851,5.9327,168.56,168.52,23.776884]
[1729498872036,5.9327,168.56,168.54,23.776884]
[1729498872354,5.9327,168.56,168.52,23.776884]
[1729498872538,5.9327,168.56,168.54,23.776884]
[1729498872842,5.9327,168.56,168.52,23.776884]
[1729498873027,5.9327,168.56,168.54,23.776884]
[1729498873229,5.9336,168.53,168.52,23.776884]
[1729498873454,5.9336,168.53,168.52,25.26130105]
[1729498874027,5.9336,168.53,168.52,1.48441705]
[1729498874331,5.9336,168.53,168.51,23.776884]
[1729498874639,5.9336,168.53,168.52,1.48444656]
[1729498875940,5.9319,168.58,168.52,1.48447934]
[1729498876259,20.0,168.59,168.53,1.48447934]